Cogmind - Beta 13 @@@ ROGUE MODE // 2024.03.30 @ 20:36:43 Player: CrossedViper Result: Destroyed by AG-67464 with Assembled Focal Cannon Performance ------------- Evolutions (4) 2000 Regions Visited (14) 2800 Robots Destroyed (242) 1210 Value Destroyed (9023) 9023 Prototype IDs (49) 980 Alien Tech Used (0) 0 Bonus (5107) 5107 TOTAL SCORE: 21120 Bonus ------- High Alert Combat Kills 1836 Follower Combat Kills 540 Entered Garrisons 400 Aligned with FarCom 300 Destroyed Z-Imprinter 1000 Triggered Deep Caves Wall 500 Exposed GOLEM Chamber 500 Acquired ECA 300 Friendly Fire -269 Cogmind --------- Core Integrity 0/850 Matter 118/300 Energy 692/700 System Corruption 11% Temperature Cool (78) Movement Walking (210) Ox1 Location -6/Deep Caves Parts ------- > --- POWER (1) -------- Zionite Light DM Reactor > --- PROPULSION (3) --- Zionite Composite Leg I Zionite Composite Leg I Zionite Composite Leg I > --- UTILITY (7) ------ Experimental Power Amplifier Advanced Heat Sink Huge Storage Unit Zionite Biocell Targeting Computer Zionite Heavy Carapace > --- WEAPON (4) ------- Heavy Hardcell Cannon Improved Proton Missile Launcher > --- INVENTORY (25) --- Flexi-carbon Leg Experimental Power Amplifier Experimental Power Amplifier Zionite Biocell (600) Advanced Matter Compressor (400) Advanced Terrain Scanner Advanced Terrain Scan Processor Launcher Loader Makeshift Transmission Jammer Zionite Weapon Casing Zionite Weapon Casing Zionite Weapon Casing Advanced EM Disruption Field Improved Energy Mantle Ion Burst Cannon Heavy Phase Cannon Heavy Hardcell Cannon Improved Proton Missile Launcher Peak State ------------ > --- POWER ------------ Zionite Light DM Reactor > --- PROPULSION ------- Zionite Composite Leg I Zionite Composite Leg I Zionite Composite Leg I > --- UTILITY ---------- Experimental Power Amplifier Advanced Heat Sink Huge Storage Unit Zionite Biocell Targeting Computer Zionite Weapon Casing Layered Medium Armor Plating > --- WEAPON ----------- Ion Burst Cannon Heavy Hardcell Cannon Improved Proton Missile Launcher > --- INVENTORY -------- Flexi-carbon Leg Experimental Power Amplifier Experimental Power Amplifier Zionite Biocell Advanced Matter Compressor Advanced Terrain Scanner Advanced Terrain Scan Processor Launcher Loader Makeshift Transmission Jammer Zionite Weapon Casing Zionite Weapon Casing Zionite Weapon Casing Zionite Heavy Carapace Advanced EM Disruption Field Improved Energy Mantle Plasma Cannon Heavy Phase Cannon Heavy Hardcell Cannon Improved Proton Missile Launcher RU-N14's Throwing Claymores RU-N14's Throwing Claymores RU-N14's Throwing Claymores [Rating: 104] Favorites ----------- Power Enhanced Nuclear Core Engine Improved Ion Engine Power Core Enhanced Nuclear Core Reactor Zionite Light DM Reactor Propulsion Light Treads Treads Light Treads Leg Medium Armored Exoskeleton Utility Targeting Computer Device Advanced Heat Sink Storage Huge Storage Unit Processor Targeting Computer Protection Hardened Heavy Armor Plating Weapon Heavy Hardcell Cannon Energy Gun Advanced Beam Rifle Energy Cannon Plasma Cannon Ballistic Gun Assault Rifle Ballistic Cannon Heavy Hardcell Cannon Launcher Improved Proton Missile Launcher Special Weapon RU-N14's Throwing Claymores Impact Weapon Makeshift Hammer Slashing Weapon Phasing Sabre Build | -11 -10 -10 -10 -9 -8 -8 -8 -7 -7 -6 -6 -6 -6 -6 ------- Run | Yrd Mat Min Exi Min Mat Gar Mat Fac Gar Fac Low Low Zio Dee Slots Evolved 8 | . . . . . 4 . . 2 . 2 . . . . Power . | . . . . . . . . . . . . . . . Propulsion 1 | . . . . . 1 . . . . . . . . . Utility 5 | . . . . . 3 . . 2 . . . . . . Weapon 2 | . . . . . . . . . . 2 . . . . Parts Attached 213 | 6 13 6 . 1 46 13 11 17 19 42 . 4 9 26 Power 18 | 1 1 2 . . 4 . . 1 2 4 . 1 . 2 Engine 10 | 1 1 2 . . 3 . . . 1 2 . . . . Core 6 | . . . . . 1 . . 1 1 2 . 1 . . Reactor 2 | . . . . . . . . . . . . . . 2 Propulsion 36 | 2 1 1 . . 13 6 4 2 1 . . . . 6 Treads 30 | 2 1 1 . . 12 6 4 2 . . . . . 2 Leg 6 | . . . . . 1 . . . 1 . . . . 4 Wheel . | . . . . . . . . . . . . . . . Hover . | . . . . . . . . . . . . . . . Flight . | . . . . . . . . . . . . . . . Utility 69 | 1 2 1 . 1 9 2 1 8 8 23 . 1 1 11 Device 27 | . . 1 . . 1 2 1 3 4 15 . . . . Storage 13 | 1 1 . . 1 . . . . 2 6 . . . 2 Processor 10 | . 1 . . . 4 . . 3 . 2 . . . . Hackware . | . . . . . . . . . . . . . . . Protection 19 | . . . . . 4 . . 2 2 . . 1 1 9 Artifact . | . . . . . . . . . . . . . . . Weapon 90 | 2 9 2 . . 20 5 6 6 8 15 . 2 8 7 Energy Gun 16 | 1 1 . . . 4 3 2 1 2 . . . . 2 Energy Cannon 9 | . . . . . . . . 1 . 6 . . 2 . Ballistic Gun 29 | 1 5 2 . . 10 . 3 2 4 2 . . . . Ballistic Cannon 4 | . . . . . . . . . . 2 . 1 1 . Launcher 23 | . 3 . . . 4 2 1 2 2 5 . 1 1 2 Special Weapon 5 | . . . . . . . . . . . . . 2 3 Impact Weapon 3 | . . . . . 2 . . . . . . . 1 . Slashing Weapon 1 | . . . . . . . . . . . . . 1 . Piercing Weapon . | . . . . . . . . . . . . . . . Special Melee Weapon . | . . . . . . . . . . . . . . . Unidentified Prototypes 25 | . . . . . 2 . 2 . 1 11 . . 1 8 Corrupted Parts 1 | . . . . . . . . . . . . . . 1 System Corruption 10 | . . . . . . . . . . . . . . 10 Parts Lost 45 | . 2 1 . . 14 1 . 8 2 5 . 5 . 7 Power 8 | . 1 . . . 2 . . 2 . . . 1 . 2 Propulsion 12 | . 1 1 . . 6 . . 2 1 . . . . 1 Utility 16 | . . . . . 2 1 . 4 1 2 . 2 . 4 Weapon 9 | . . . . . 4 . . . . 3 . 2 . . Highest Loss Streak 7 | . 1 1 . . 6 1 . 7 1 2 . 5 . 3 To Critical Strikes 1 | . . 1 . . . . . . . . . . . . Average Slot Usage (%) 82 | . 97 100 100 100 99 98 100 88 85 81 80 70 60 81 Engine 4 | . 14 14 14 14 7 9 9 3 4 3 . . . . Core 2 | . . . . . 1 . . 2 1 2 6 6 6 2 Treads 9 | . 28 28 28 28 26 26 27 23 3 . . . . 1 Leg 4 | . . . . . . . . . 6 6 6 6 6 13 Device 14 | . . 8 14 14 4 8 9 8 22 22 26 17 13 13 Storage 8 | . 14 14 14 14 9 9 9 7 7 6 6 6 6 8 Processor 13 | . 11 5 . . 18 27 27 21 15 14 13 13 13 9 Protection 3 | . . . . . 12 . . 5 6 1 . 3 3 8 Energy Gun 2 | . 5 . . . 3 17 12 . 6 3 . . . . Energy Cannon 3 | . . . . . . . . . . 7 13 4 3 5 Ballistic Gun 7 | . 21 28 28 28 14 . 5 13 6 8 . . . . Ballistic Cannon 2 | . . . . . . . . . . 1 6 5 3 6 Naked Turns . | . . . . . . . . . . . . . . . Heaviest Build 153 | 12 28 32 32 52 71 68 63 82 63 144 130 142 150 153 Greatest Support 84 | 40 40 40 40 40 60 60 84 84 68 50 50 50 50 72 Greatest Overweight (x) 3 | . . . . 1 1 1 1 . 1 2 2 2 2 3 Average Overweight (x) . | . . . . . . 1 . . . 1 2 2 1 1 Largest Inventory Capacity 25 | 8 15 15 15 20 20 20 20 20 25 25 25 25 25 25 Average Capacity 21 | 6 13 15 15 17 20 20 20 20 20 21 25 25 25 25 Most Carried 25 | 4 10 14 15 18 20 20 20 20 20 24 25 25 25 25 Average Carried 20 | 2 7 11 14 15 16 19 19 17 19 20 24 24 24 23 Final Capacity 25 | 8 15 15 15 20 20 20 20 20 20 25 25 25 25 25 Final Carried 25 | 3 9 14 15 18 19 20 20 20 20 24 25 25 25 20 Class Distribution -------------------- 30% | Mutant 26% | Scavenger-Mutant 22% | Gunner 17% | Scavenger-Gunner Dominant Class ---------------- Mutant | -10/Materials Mutant | -10/Mines Mutant | -10/Exiles Mutant | -9/Mines Scavenger-Mutant | -8/Materials Scavenger-Mutant | -8/Garrison Mutant | -8/Materials Scavenger-Mutant | -7/Factory Scavenger-Mutant | -7/Garrison Scavenger-Gunner | -6/Factory Scavenger-Gunner | -6/Lower Caves Gunner | -6/Lower Caves Gunner | -6/Zion Gunner | -6/Deep Caves Resources | -11 -10 -10 -10 -9 -8 -8 -8 -7 -7 -6 -6 -6 -6 -6 ----------- Run | Yrd Mat Min Exi Min Mat Gar Mat Fac Gar Fac Low Low Zio Dee Matter Collected 6773 | 207 614 315 . 62 1128 310 145 372 927 1226 318 545 74 530 Remotely . | . . . . . . . . . . . . . . . Salvage Created 9676 | . 1178 149 . 89 1643 598 676 541 849 2507 138 321 27 960 Parts 472 | . 56 12 . 3 100 50 32 26 50 104 6 6 . 27 Haulers Intercepted 12 | . 2 . . . 5 . 1 . . 4 . . . . Recyclers Shooed 12 | . 4 . . . 3 . . . . 5 . . . . Parts Field Recycled . | . . . . . . . . . . . . . . . Retrieved Matter . | . . . . . . . . . . . . . . . Parts Self-Destructed 15 | . . . . . . . . . . . 6 3 6 . Prevented 6 | . . . . . . . . . . . . 6 . . Kills | -11 -10 -10 -10 -9 -8 -8 -8 -7 -7 -6 -6 -6 -6 -6 ------- Run | Yrd Mat Min Exi Min Mat Gar Mat Fac Gar Fac Low Low Zio Dee Combat Hostiles Destroyed 224 | . 23 5 . 2 33 20 11 10 23 35 6 8 1 47 Guns 86 | . 13 5 . 2 23 10 8 5 12 8 . . . . Cannons 28 | . . . . . . . . 1 . 5 6 5 1 10 AOE 105 | . 10 . . . 10 9 3 4 11 22 . 2 . 34 Classes Destroyed 23 | . 8 1 . . 3 1 1 2 . 3 . 1 . 3 Worker 7 | . 2 . . . 3 . 1 . . 1 . . . . Builder 7 | . 1 . . . 1 . . . . 5 . . . . Tunneler 1 | . . . . . . . . 1 . . . . . . Hauler 12 | . 2 . . . 5 . 1 . . 4 . . . . Recycler 16 | . 4 . . . 1 . 2 2 . 7 . . . . Mechanic 2 | . 1 . . . 1 . . . . . . . . . Operator 2 | . . . . . . . 1 . . 1 . . . . Watcher 7 | . 2 . . . 2 . . . . 3 . . . . Swarmer 46 | . 3 3 . 2 10 7 3 1 14 . 3 . . . Cutter 2 | . . . . . . 2 . . . . . . . . Grunt 74 | . 20 . . . 12 3 5 5 5 14 3 7 . . Brawler 3 | . . . . . . . . 1 1 1 . . . . Duelist 1 | . . . . . . . . . . 1 . . . . Protector 4 | . . . . . . . . . . 4 . . . . Sentry 25 | . . 2 . . 6 8 3 2 3 1 . . . . Specialist 3 | . . . . . 2 . . . . 1 . . . . Hunter 10 | . . . . . 2 . . 1 . 7 . . . . Programmer 5 | . . . . . . . . . . 5 . . . . Heavy 2 | . . . . . 1 . . . . 1 . . . . Behemoth 1 | . . . . . . . . . . . . 1 . . Z-Light 8 | . . . . . . . . . . . . . . 8 Assembled 36 | . . . . . . . . . . . . . . 36 Golem 2 | . . . . . . . . . . . . . . 2 Thug 1 | . . . . 1 . . . . . . . . . . Butcher 1 | . . . . . . . . . . . . . 1 . Best Kill Streak 36 | . 10 3 . 2 7 7 7 4 4 20 3 4 1 36 Combat Bots Only 36 | . 7 3 . 2 6 7 6 4 4 14 3 4 1 36 Max Kills in Single Turn 13 | . 2 1 . 1 3 3 3 1 4 4 1 1 1 13 Gunslinging 1 | . . . . . . 1 . . . . . . . . Exploded 12 | . 2 . . . 2 3 2 1 4 3 . 1 . 12 Melee . | . . . . . . . . . . . . . . . Uniques/NPCs Destroyed 1 | . . . . . . . . . . . . . . 1 Z-Imprinter (-6/Deep Caves) Combat | -11 -10 -10 -10 -9 -8 -8 -8 -7 -7 -6 -6 -6 -6 -6 -------- Run | Yrd Mat Min Exi Min Mat Gar Mat Fac Gar Fac Low Low Zio Dee Hostile Shots Fired 1029 | . 105 15 . 9 215 82 15 126 115 106 15 90 . 136 Missed 309 | . 32 4 . 1 55 23 6 34 45 39 3 26 . 41 Damage Taken 12787 | . 798 129 . 63 2573 875 121 1647 856 1338 201 1289 . 2897 Core 1823 | . 142 . . 6 264 221 36 185 105 136 17 240 . 471 Absorbed by Shields 50 | . . . . . . . . . . 50 . . . . Redirected to Shielding 416 | . . . . . 57 . . . . . . . . 359 Regen/Repaired (Parts) 282 | . . . . . 282 . . . . . . . . . Core Remaining (%) 50 | 100 . . . 40 . . 5 . 58 . . . . . Volleys Fired 630 | . 101 8 1 8 127 47 28 38 81 85 12 33 13 48 Largest 4 | . 2 2 2 2 2 2 2 2 2 4 3 3 1 2 Hottest 240 | . 70 40 40 40 103 142 142 151 89 240 240 240 100 180 Shots Fired 1133 | . 183 16 2 16 238 78 50 68 135 218 24 35 13 57 Gun 846 | . 169 16 2 16 227 68 48 55 127 118 . . . . Cannon 176 | . . . . . . . . 5 . 77 24 30 13 27 Launcher 103 | . 14 . . . 11 10 2 8 8 23 . 5 . 22 Special 8 | . . . . . . . . . . . . . . 8 Kinetic 636 | . 134 16 2 16 196 . 10 50 53 95 11 28 5 20 Thermal 386 | . 35 . . . 31 68 38 10 74 100 13 2 8 7 Explosive 84 | . 14 . . . 11 10 2 8 8 23 . . . 8 Electromagnetic 27 | . . . . . . . . . . . . 5 . 22 Robot Hit Streak 35 | . 21 6 . 8 35 23 17 11 12 12 5 7 8 11 Robot Miss Streak 7 | . 4 1 . 5 3 5 3 2 7 5 3 2 1 3 Penetration Max 1 | . . . . . 1 . . . . . . . . . Secondary Targets 9 | . 1 . . . 4 2 . . 2 . . . . . Max Gunslinging Chain 1 | . 1 . . . 1 1 . . 1 . . . . . Shots Hit Robots 680 | . 121 10 . 9 170 40 34 51 44 133 13 24 3 28 Core Hits 490 | . 63 6 . 5 79 28 17 22 49 133 6 12 1 69 Critical Kills 2 | . . . . . . . . 1 . 1 . . . . Critical Parts Destroyed 7 | . 2 . . . 3 . . 1 . 1 . . . . Critical Strikes 31 | . 4 . . . 3 4 4 3 2 4 3 2 . 2 Burn 15 | . 2 . . . . 4 4 1 2 2 . . . . Destroy 8 | . 2 . . . 2 . . 2 . 2 . . . . Blast 7 | . . . . . . . . . . . 3 2 . 2 Smash 1 | . . . . . 1 . . . . . . . . . Melee Attacks 29 | . . . . . 3 . . . . . . . 26 . Impact 28 | . . . . . 3 . . . . . . . 25 . Slashing 1 | . . . . . . . . . . . . . 1 . Piercing . | . . . . . . . . . . . . . . . Sneak Attacks 1 | . . . . . 1 . . . . . . . . . Combat Hostiles . | . . . . . . . . . . . . . . . Follow-up Attacks . | . . . . . . . . . . . . . . . Damage Inflicted 30071 | . 2110 141 . 170 3959 1604 1044 1705 2468 8206 999 2245 249 5171 Guns 8974 | . 1314 125 . 167 2839 803 750 689 884 1403 . . . . Cannons 5906 | . . . . . . . . 140 . 1381 999 1893 249 1244 Explosions 14816 | . 775 . . . 984 799 294 876 1584 5354 . 352 . 3798 Melee 119 | . . . . . 119 . . . . . . . . . Ramming 127 | . 21 16 . 3 17 2 . . . 68 . . . . Kinetic 10041 | . 962 125 . 167 2264 . 127 609 422 1385 871 1869 249 991 Thermal 5418 | . 465 . . . 575 803 623 220 462 1826 128 24 . 292 Explosive 12951 | . 662 . . . 984 799 294 876 1584 4927 . . . 2825 Electromagnetic 1286 | . . . . . . . . . . . . 352 . 934 Impact 119 | . . . . . 119 . . . . . . . . . Slashing 129 | . . . . . . . . . . . . . . 129 Piercing . | . . . . . . . . . . . . . . . Highest Corruption 11 | . . . . . 1 1 1 6 6 2 2 3 3 11 Average Corruption 3 | . . . . . 1 1 1 5 6 1 2 2 3 10 Corruption Purged . | . . . . . . . . . . . . . . . Corruption Blocked . | . . . . . . . . . . . . . . . Effects 197 | . . . . . 8 9 6 8 58 12 30 20 2 44 Message Errors 52 | . . . . . 4 1 1 2 11 4 10 3 1 15 Matter Fused 47 | . . . . . 2 3 1 1 14 2 6 6 . 12 Heat Flow Errors 32 | . . . . . . 3 1 1 9 2 3 5 1 7 Energy Discharges 14 | . . . . . . . 2 . 5 1 2 3 . 1 Parts Rejected 2 | . . . . . . . 1 . . . . . . 1 Parts Fused 1 | . . . . . . . . . 1 . . . . . Data Loss (minor) 16 | . . . . . 1 . . . 6 1 2 2 . 4 Data Loss (major) 12 | . . . . . . . . 2 6 . 3 1 . . Misfires 11 | . . . . . 1 1 . 1 2 1 1 . . 4 Alerts 5 | . . . . . . . . . 2 1 2 . . . Weapon Failures 5 | . . . . . . 1 . 1 2 . 1 . . . Overload Shots . | . . . . . . . . . . . . . . . Overflow Damage 1347 | . 101 . . . 179 8 . 50 75 287 104 106 71 366 Projectiles 537 | . . . . . . . . 16 . 30 104 84 71 232 Explosions 691 | . 101 . . . 60 8 . 34 75 257 . 22 . 134 Melee 119 | . . . . . 119 . . . . . . . . . Knockbacks 9 | . . . . . . . . . . . 1 3 2 3 Impact . | . . . . . . . . . . . . . . . Kinetic 8 | . . . . . . . . . . . 1 2 2 3 Secondary 1 | . . . . . . . . . . . . 1 . . Self-Inflicted Damage 822 | . . . . . 39 19 . 350 . 174 . 83 . 157 Shots 25 | . . . . . 1 2 . 7 . 6 . 4 . 5 Rammed 16 | . 5 3 . 1 6 1 . . . . . . . . Targets Rammed 21 | . 5 3 . 1 7 1 . . . 4 . . . . Kicked 4 | . . . . . . . . . . 4 . . . . Crushed 1 | . . . . . 1 . . . . . . . . . Highest Temperature 504 | . 228 9 . . 182 504 275 186 279 432 336 324 237 270 Average Temperature 85 | . 75 4 . . 35 126 75 26 95 118 132 95 41 64 Received Heat Transfer 3366 | . 393 45 . . 576 279 54 366 156 282 9 614 . 592 Effects 9 | . 2 . . . . 5 . . . 1 1 . . . Shutdowns 1 | . . . . . . 1 . . . . . . . . Energy Bleed 2 | . . . . . . 1 . . . 1 . . . . Interference 6 | . 2 . . . . 3 . . . . 1 . . . Siege Activations . | . . . . . . . . . . . . . . . Robots Corrupted 4 | . . . . . . . . . . . . 1 . 3 Combat Hostiles 4 | . . . . . . . . . . . . 1 . 3 Parts Fried 19 | . . . . . 1 . . . . . . 2 . 16 Impact Corruptions 2 | . . . . . 2 . . . . . . . . . Robots Melted 2 | . . . . . . 1 1 . . . . . . . Combat Hostiles 1 | . . . . . . 1 . . . . . . . . Parts Melted 13 | . 2 . . 1 2 2 2 . . 4 . . . . Heat Transferred 10230 | . 1174 . . . 999 1665 1332 370 999 3041 250 50 . 350 Parts Sabotaged . | . . . . . . . . . . . . . . . Parts Stolen . | . . . . . . . . . . . . . . . Parts Stripped . | . . . . . . . . . . . . . . . Power Chain Reactions 1 | . . . . . . . . . . . . . . 1 Alert | -11 -10 -10 -10 -9 -8 -8 -8 -7 -7 -6 -6 -6 -6 -6 ------- Run | Yrd Mat Min Exi Min Mat Gar Mat Fac Gar Fac Low Low Zio Dee Peak Influence 1579 | . 461 179 . 100 575 1191 945 441 1579 1359 . . . . Initial 828 | . . 179 . . 39 373 580 236 225 828 . . . . Average 520 | . 217 53 . 25 398 777 650 305 875 843 . . . . Maximum Alert Level 4 | . 2 . . . 2 4 3 2 4 4 . . . . Low Security (%) 25 | 100 45 100 . 100 10 . . . . . . . . . Level 1 16 | . 35 . . . 29 13 . 85 14 . . . . . Level 2 30 | . 18 . . . 59 25 73 14 24 44 . . . . Level 3 16 | . . . . . . 50 26 . 32 24 . . . . Level 4 11 | . . . . . . 10 . . 28 31 . . . . Level 5 . | . . . . . . . . . . . . . . . High Security . | . . . . . . . . . . . . . . . Max Security . | . . . . . . . . . . . . . . . Squads Dispatched 30 | . 8 . . . 6 . 1 2 . 13 . . . . Investigation 10 | . 5 . . . 3 . . 1 . 1 . . . . Extermination 3 | . . . . . . . . . . 3 . . . . Reinforcement 13 | . 3 . . . 3 . 1 . . 6 . . . . Assault 3 | . . . . . . . . . . 3 . . . . Garrison 1 | . . . . . . . . 1 . . . . . . Intercept . | . . . . . . . . . . . . . . . Searches Triggered . | . . . . . . . . . . . . . . . Construction Impeded 2 | . . . . . 1 . . . . 1 . . . . Haulers Reinforced . | . . . . . . . . . . . . . . . Active Scanning Responses . | . . . . . . . . . . . . . . . Cargo Convoy Interrupts 1 | . . . . . . . . . . 1 . . . . Stealth | -11 -10 -10 -10 -9 -8 -8 -8 -7 -7 -6 -6 -6 -6 -6 --------- Run | Yrd Mat Min Exi Min Mat Gar Mat Fac Gar Fac Low Low Zio Dee Distress Signals 8 | . 1 2 . . 3 . 1 . . 1 . . . . Communications Jammed 5 | . . . . . . . . . . 5 . . . . Distress Signals 5 | . . . . . . . . . . 5 . . . . Times Spotted 300 | . 36 5 . 4 41 25 17 12 27 60 4 9 2 58 Peak Tracking Total 37 | . 5 3 9 4 7 5 5 4 4 12 3 5 1 37 Tactical Retreats 14 | . 1 . . . 3 7 . . . 2 . . 1 . Traps | -11 -10 -10 -10 -9 -8 -8 -8 -7 -7 -6 -6 -6 -6 -6 ------- Run | Yrd Mat Min Exi Min Mat Gar Mat Fac Gar Fac Low Low Zio Dee Traps Triggered 13 | . 2 . . . 1 2 . 2 6 . . . . . Indirectly . | . . . . . . . . . . . . . . . Trap Hack Attempts . | . . . . . . . . . . . . . . . Triggered . | . . . . . . . . . . . . . . . Disarmed . | . . . . . . . . . . . . . . . Reprogrammed . | . . . . . . . . . . . . . . . Reused . | . . . . . . . . . . . . . . . Traps Extracted . | . . . . . . . . . . . . . . . Installed . | . . . . . . . . . . . . . . . Triggered . | . . . . . . . . . . . . . . . Machines | -11 -10 -10 -10 -9 -8 -8 -8 -7 -7 -6 -6 -6 -6 -6 ---------- Run | Yrd Mat Min Exi Min Mat Gar Mat Fac Gar Fac Low Low Zio Dee Machines Disabled 29 | . 2 . 1 . 3 2 2 . 6 11 . . . 2 Max in Single Turn 8 | . 1 . 1 . 1 1 1 . 2 8 . . . 1 Garrison Relay 3 | . . . . . . 1 . . 2 . . . . . Machines Repaired . | . . . . . . . . . . . . . . . Machines Dismantled . | . . . . . . . . . . . . . . . Machines Sabotaged . | . . . . . . . . . . . . . . . Overloaded Fab Kills . | . . . . . . . . . . . . . . . Hacking | -11 -10 -10 -10 -9 -8 -8 -8 -7 -7 -6 -6 -6 -6 -6 --------- Run | Yrd Mat Min Exi Min Mat Gar Mat Fac Gar Fac Low Low Zio Dee Machines Accessed 29 | . 5 . 2 . 9 1 3 2 1 6 . . . . Terminals 19 | . 4 . . . 5 1 2 1 1 5 . . . . Fabricators . | . . . . . . . . . . . . . . . Repair Stations 1 | . . . . . 1 . . . . . . . . . Recycling Units 2 | . 1 . . . 1 . . . . . . . . . Scanalyzers 3 | . . . . . 1 . 1 . . 1 . . . . Garrison Access 2 | . . . . . 1 . . 1 . . . . . . Total Hacks 80 | . 17 . 2 . 21 2 12 4 3 19 . . . . Successful 34 | . 4 . 2 . 7 1 7 1 1 11 . . . . Failed 46 | . 13 . . . 14 1 5 3 2 8 . . . . Catastrophic 14 | . 3 . . . 6 . 2 1 . 2 . . . . Database Lockouts . | . . . . . . . . . . . . . . . Manual 30 | . 15 . 1 . 8 . 3 . . 3 . . . . Terminals 58 | . 15 . . . 12 2 9 3 3 14 . . . . Fabricators . | . . . . . . . . . . . . . . . Repair Stations 3 | . . . . . 3 . . . . . . . . . Recycling Units 4 | . 2 . . . 2 . . . . . . . . . Scanalyzers 10 | . . . . . 2 . 3 . . 5 . . . . Garrison Access 3 | . . . . . 2 . . 1 . . . . . . Terminal Hacks 17 | . 3 . 2 . 1 1 3 . 1 6 . . . . Record 1 | . . . 1 . . . . . . . . . . . Robot Analysis 3 | . 2 . . . 1 . . . . . . . . . Branch Access Points 1 | . . . . . . . . . . 1 . . . . Emergency Access Points 2 | . . . . . . 1 . . 1 . . . . . Terminal Index 2 | . . . . . . . 1 . . 1 . . . . Unreport Threat 4 | . . . . . . . 2 . . 2 . . . . Locate Traps 1 | . . . . . . . . . . 1 . . . . Hauler Manifests 1 | . 1 . . . . . . . . . . . . . Zone Layout 1 | . . . . . . . . . . 1 . . . . Derelict Proto ID Bank 1 | . . . 1 . . . . . . . . . . . Fabricator Hacks . | . . . . . . . . . . . . . . . Repair Station Hacks 2 | . . . . . 2 . . . . . . . . . Scan Component 1 | . . . . . 1 . . . . . . . . . Repair 1 | . . . . . 1 . . . . . . . . . Recycling Unit Hacks 1 | . . . . . 1 . . . . . . . . . Retrieve Components 1 | . . . . . 1 . . . . . . . . . Scanalyzer 8 | . . . . . 2 . 2 . . 4 . . . . Insert Component 4 | . . . . . 1 . 1 . . 2 . . . . Analyze 4 | . . . . . 1 . 1 . . 2 . . . . Garrison Access Hacks 2 | . . . . . 1 . . 1 . . . . . . Unlock Access 2 | . . . . . 1 . . 1 . . . . . . Unauthorized Hacks 4 | . 1 . . . . . 2 . . 1 . . . . Terminals 3 | . . . . . . . 2 . . 1 . . . . Botnet 2 | . . . . . . . 1 . . 1 . . . . Operators 1 | . . . . . . . 1 . . . . . . . Fabricators . | . . . . . . . . . . . . . . . Repair Stations . | . . . . . . . . . . . . . . . Recycling Units 1 | . 1 . . . . . . . . . . . . . Tunnel 1 | . 1 . . . . . . . . . . . . . Scanalyzers . | . . . . . . . . . . . . . . . Garrison Access . | . . . . . . . . . . . . . . . Data Cores Recovered . | . . . . . . . . . . . . . . . Used . | . . . . . . . . . . . . . . . Hacking Detections 21 | . 4 . . . 6 1 3 2 . 5 . . . . Full Trace Events 8 | . 3 . . . 3 . . 1 . 1 . . . . Feedback Events 2 | . . . . . 1 . . 1 . . . . . . Corruption 2 | . . . . . 1 . . 1 . . . . . . Feedback Blocked . | . . . . . . . . . . . . . . . Robot Schematics Acquired 3 | . . . . . . . . . . . . . 3 . Robots Built . | . . . . . . . . . . . . . . . Authchips . | . . . . . . . . . . . . . . . Time . | . . . . . . . . . . . . . . . Total Robot Build Rating . | . . . . . . . . . . . . . . . Part Schematics Acquired 19 | . . . . . 1 . 1 . . 2 . . 15 . Parts Built . | . . . . . . . . . . . . . . . Authchips . | . . . . . . . . . . . . . . . Time . | . . . . . . . . . . . . . . . Total Part Build Rating . | . . . . . . . . . . . . . . . Parts Repaired 1 | . . . . . 1 . . . . . . . . . Time 26 | . . . . . 26 . . . . . . . . . Parts Recycled . | . . . . . . . . . . . . . . . Recycled Matter . | . . . . . . . . . . . . . . . Retrieved Matter . | . . . . . . . . . . . . . . . Retrieved Components 10 | . . . . . 10 . . . . . . . . . Parts Scanalyzed 4 | . . . . . 1 . 1 . . 2 . . . . Part Schematics Acquired 4 | . . . . . 1 . 1 . . 2 . . . . Parts Damaged 1 | . . . . . . . 1 . . . . . . . Bothacking | -11 -10 -10 -10 -9 -8 -8 -8 -7 -7 -6 -6 -6 -6 -6 ------------ Run | Yrd Mat Min Exi Min Mat Gar Mat Fac Gar Fac Low Low Zio Dee Used RIF Installer . | . . . . . . . . . . . . . . . Robots Hacked . | . . . . . . . . . . . . . . . Non-combat . | . . . . . . . . . . . . . . . Combat . | . . . . . . . . . . . . . . . Robot Hacks Applied . | . . . . . . . . . . . . . . . Relay Couplers Released 12 | . . . . . . 5 . . 7 . . . . . Machine Destruction 12 | . . . . . . 5 . . 7 . . . . . Fabnet Peak Effective % . | . . . . . . . . . . . . . . . Robots Rewired 8 | . . . . . . 8 . . . . . . . . Allies Hacked . | . . . . . . . . . . . . . . . Hacks Repelled . | . . . . . . . . . . . . . . . Allies | -11 -10 -10 -10 -9 -8 -8 -8 -7 -7 -6 -6 -6 -6 -6 -------- Run | Yrd Mat Min Exi Min Mat Gar Mat Fac Gar Fac Low Low Zio Dee Total Allies 14 | . . . . 4 . 8 . . 2 . . . . . Largest Group 8 | . . . . 3 2 8 5 . 2 . . . . . Highest-Rated Group 136 | . . . . 63 32 136 86 . 124 . . . . . Highest-Rated Ally 62 | . . . . 31 16 18 18 . 62 . . . . . Total Orders . | . . . . . . . . . . . . . . . Ally Attacks 138 | . . . . 13 28 35 40 . 22 . . . . . Total Damage 2916 | . . . . 139 351 797 614 . 1015 . . . . . Kills 21 | . . . . 2 1 6 6 . 6 . . . . . Allies Corrupted . | . . . . . . . . . . . . . . . Allies Melted 1 | . . . . . . 1 . . . . . . . . Intel | -11 -10 -10 -10 -9 -8 -8 -8 -7 -7 -6 -6 -6 -6 -6 ------- Run | Yrd Mat Min Exi Min Mat Gar Mat Fac Gar Fac Low Low Zio Dee Robot Analysis Total 3 | . 2 . . . 1 . . . . . . . . . Derelict Logs Recovered 6 | . . 2 . . . . . . . . 2 1 1 . Drone Launches . | . . . . . . . . . . . . . . . Drone Recoveries . | . . . . . . . . . . . . . . . Exploration | -11 -10 -10 -10 -9 -8 -8 -8 -7 -7 -6 -6 -6 -6 -6 ------------- Run | Yrd Mat Min Exi Min Mat Gar Mat Fac Gar Fac Low Low Zio Dee Turns Passed 22512 | 78 1117 1486 548 632 1865 1030 528 576 2258 1858 1958 1283 5188 2107 Spaces Moved 7715 | 50 493 604 341 314 658 331 219 280 828 579 534 332 1494 658 Core 14 | 14 . . . . . . . . . . . . . . Treads 3457 | 36 493 604 341 314 658 331 219 280 129 . . . . 52 Legs 4244 | . . . . . . . . . 699 579 534 332 1494 606 Wheels . | . . . . . . . . . . . . . . . Hover . | . . . . . . . . . . . . . . . Flight . | . . . . . . . . . . . . . . . Fastest Speed 50 | 50 160 160 160 160 160 240 160 160 166 140 360 360 250 210 Average Speed 244 | 129 160 160 160 191 203 240 196 162 236 261 360 360 296 285 Slowest Speed 405 | 160 160 160 160 240 243 240 245 166 250 360 360 360 360 405 Overloaded Moves . | . . . . . . . . . . . . . . . Propulsion Burnouts . | . . . . . . . . . . . . . . . Robots Hopped . | . . . . . . . . . . . . . . . Cave-ins Triggered . | . . . . . . . . . . . . . . . Exploration Rate (%) 57 | 4 80 96 70 73 57 48 30 7 94 17 74 59 83 70 Regions Visited 14 Branch Regions 7 Pre-discovered Areas 4 | . 1 . 1 . . . . . . . 1 . 1 . Known Exits Taken 4 | . . . 1 . 1 . . 1 . 1 . . . . Unknown Exits Taken 8 | 1 1 1 . 1 . . 1 . . . 1 1 1 . Scrap Searched 11 | . . 1 . 3 . . . . . . 4 1 2 . Spaces Dug 62 | . . . . . 9 11 . . . 38 . 1 3 . Terrain Destroyed 557 | . 45 . . . 73 46 22 64 15 230 1 5 4 52 Melee 4 | . . . . . 2 . . . . . . . 2 . Projectile 29 | . . . . . 1 2 2 1 1 10 1 5 2 4 AOE 524 | . 45 . . . 70 44 20 63 14 220 . . . 48 Terrain Rammed . | . . . . . . . . . . . . . . . Walls Destroyed . | . . . . . . . . . . . . . . . Machines Disabled . | . . . . . . . . . . . . . . . Actions | -11 -10 -10 -10 -9 -8 -8 -8 -7 -7 -6 -6 -6 -6 -6 --------- Run | Yrd Mat Min Exi Min Mat Gar Mat Fac Gar Fac Low Low Zio Dee Total 10374 | 64 641 1107 342 328 936 491 275 354 1041 815 557 385 2215 823 Wait 1428 | . 14 472 . . 47 16 3 5 67 62 7 12 659 64 Move 7702 | 49 492 603 340 313 658 330 218 280 826 578 533 331 1493 658 Hop . | . . . . . . . . . . . . . . . Pick Up 125 | 9 11 10 1 4 25 4 4 9 10 15 3 5 5 10 Fast Attach 78 | . 2 2 . . 17 5 8 3 7 14 . . 6 14 Attach 74 | 6 3 3 . . 17 . 1 11 4 14 . 3 1 11 Detach 14 | . . . . . . . . 3 2 8 . . . 1 Swap 61 | . 8 1 . 1 12 8 2 3 8 14 . 1 2 1 Drop 122 | . 5 5 . 1 23 10 11 2 16 21 2 . 10 16 Fire 630 | . 101 8 1 8 127 47 28 38 81 85 12 33 13 48 Melee 29 | . . . . . 3 . . . . . . . 26 . Ram . | . . . . . . . . . . . . . . . Kick 4 | . . . . . . . . . . 4 . . . . Crush 17 | . 5 3 . 1 7 1 . . . . . . . . Escape Stasis 22 | . . . . . . 2 . . 20 . . . . . Rewire 68 | . . . . . . 68 . . . . . . . . Trap . | . . . . . . . . . . . . . . . Miscellaneous . | . . . . . . . . . . . . . . . Route ------- -11/Scrapyard -10/Materials (discovered 4 exits: [*Mat x3] / [*Min]) -10/Mines (discovered 3 exits: [*Mat x2] / *Exi) -10/Exiles (discovered 2 exits: *Min x2) -9/Mines -8/Materials (discovered 5 exits: *Fac x2 / [*Sto x2] / Gar) -8/Garrison -8/Materials -7/Factory -7/Garrison (discovered 3 exits: *Fac x3) -6/Factory (discovered 4 exits: *Low x2 / Ext x2) -6/Lower Caves -6/Lower Caves -6/Zion (discovered 2 exits: [*Dee] / [*Pro]) -6/Deep Caves History --------- Turn | Location | Event 6 | -11/Scrapyard | Discovered new exit (range 15) 79 | -11/Scrapyard | Entered Materials 267 | -10/Materials | Discovered new exit (range 14) 307 | -10/Materials | Build established: Mutant 465 | -10/Materials | Discovered new exit (range 5) 842 | -10/Materials | Discovered new exit (range 9) 961 | -10/Materials | Discovered new exit (range 16) 977 | -10/Materials | Core integrity fell below 50% 1017 | -10/Materials | Destroyed 7 combat bots 1100 | -10/Materials | Derelicts attacked the area 1196 | -10/Materials | Entered Mines 1207 | -10/Mines | Assembled infested the area 1774 | -10/Mines | Discovered new exit (range 6) 1850 | -10/Mines | A weapon hastily lodged in a ceiling crevice suddenly fell to the ground 1886 | -10/Mines | Learned Materials emergency access door positions 2050 | -10/Mines | Deemed a non-threat by the Exiles lab entrance 2050 | -10/Mines | Discovered new exit (range 5) 2322 | -10/Mines | Discovered new exit (range 7) 2682 | -10/Mines | Entered Exiles 2683 | -10/Exiles | Identified exit to Mines 2758 | -10/Exiles | Met 8R-AWN 2785 | -10/Exiles | Met EX-HEX 2857 | -10/Exiles | Met EX-DEC 2886 | -10/Exiles | Learned location of Zion (-6) 3015 | -10/Exiles | Met EX-BIN 3037 | -10/Exiles | Aligned with FarCom system 3039 | -10/Exiles | Given EX-Vault access code 3077 | -10/Exiles | Opened EX-Vault 3115 | -10/Exiles | Warned to stay clear of 0b10 Research branches 3203 | -10/Exiles | Attacked by the Exiles 3230 | -10/Exiles | Entered Mines 3360 | -9/Mines | Assisted by bots powering up and referring to "LRC-V3" 3789 | -9/Mines | Discovered new exit (range 8) 3823 | -9/Mines | Received a Mining Laser from a helpful Derelict 3862 | -9/Mines | Entered Materials 3862 | -8/Materials | Accompanied by 2 allies 3862 | -8/Materials | Evolved 4 slots: Propulsion x1, Utility x3 3928 | -8/Materials | Repaired Huge Storage Unit 4195 | -8/Materials | Build established: Scavenger-Mutant 4217 | -8/Materials | Discovered new exit (range 16) 4616 | -8/Materials | Discovered new exit (range 16) 4749 | -8/Materials | Discovered new exit (range 10) 5193 | -8/Materials | Lost 3 parts (2n1w) 5242 | -8/Materials | Discovered new exit (range 4) 5304 | -8/Materials | Lost 6 parts (2p2n1u1w) 5428 | -8/Materials | Found Prototype Device 5727 | -8/Materials | Identified exit to Garrison 5727 | -8/Materials | Entered Garrison 5858 | -8/Garrison | Core integrity fell below 50% 6004 | -8/Garrison | Triggered checkpoint 6064 | -8/Garrison | Destroyed 7 combat bots 6131 | -8/Garrison | Triggered checkpoint 6143 | -8/Garrison | Triggered checkpoint 6160 | -8/Garrison | Core integrity fell below 20% 6315 | -8/Garrison | Discovered new exit (range 8) 6622 | -8/Garrison | Triggered checkpoint 6639 | -8/Garrison | Garrison Relay disabled 6676 | -8/Garrison | Lost 3 allies 6711 | -8/Garrison | Triggered checkpoint 6757 | -8/Garrison | Entered Materials 6757 | -8/Materials | Accompanied by 5 allies 7088 | -8/Materials | Lost 3 allies 7259 | -8/Materials | Discovered new exit (range 15) 7285 | -8/Materials | Entered Factory 7285 | -7/Factory | Evolved 2 slots: Utility x2 7628 | -7/Factory | Lost 7 parts (1p2n4u) 7844 | -7/Factory | Garrison activated, responded to threat 7861 | -7/Factory | Identified exit to Garrison 7861 | -7/Factory | Entered Garrison 8030 | -7/Garrison | Triggered checkpoint 8175 | -7/Garrison | Triggered checkpoint 8238 | -7/Garrison | Triggered checkpoint 8421 | -7/Garrison | Discovered new exit (range 11) 8476 | -7/Garrison | Triggered checkpoint 8891 | -7/Garrison | Found Launcher Loader 8986 | -7/Garrison | Discovered new exit (range 11) 9007 | -7/Garrison | Found embedded Infiltrators 9090 | -7/Garrison | Triggered checkpoint 9130 | -7/Garrison | Garrison Relay disabled 9267 | -7/Garrison | Spotted B-75 Beast 9283 | -7/Garrison | Allies destroyed B-75 Beast 9407 | -7/Garrison | Triggered checkpoint 9466 | -7/Garrison | Triggered checkpoint 9594 | -7/Garrison | Triggered checkpoint 9750 | -7/Garrison | Garrison Relay disabled 9810 | -7/Garrison | Discovered new exit (range 10) 9832 | -7/Garrison | Attempted to access garrison exit controls, blocked by remote lockdown 9837 | -7/Garrison | Triggered checkpoint 10119 | -7/Garrison | Entered Factory 10119 | -6/Factory | Evolved 2 slots: Weapon x2 10321 | -6/Factory | Identified exit to Lower Caves 10321 | -6/Factory | Identified exit to Extension 10426 | -6/Factory | Build established: Scavenger-Gunner 11169 | -6/Factory | First assault squad dispatched 11386 | -6/Factory | Cargo convoy interrupted 11443 | -6/Factory | Destroyed 14 combat bots 11460 | -6/Factory | Found Prototype Processor 11460 | -6/Factory | Identified Exp. Signal Interpreter 11480 | -6/Factory | Found Prototype Device 11480 | -6/Factory | Identified Adv. EM Disruption Field 11977 | -6/Factory | Entered Lower Caves 11986 | -6/Lower Caves | Met a Warlord Commander 11987 | -6/Lower Caves | Learned location of Warlord (-4) 11988 | -6/Lower Caves | Warlord Commander delivered Encrypted Comm Array 11992 | -6/Lower Caves | Found Encrypted Comm Array 12909 | -6/Lower Caves | Learned Factory stockpile data 13413 | -6/Lower Caves | Learned 8 Factory zone layouts 13500 | -6/Lower Caves | Spotted B-75 Beast 13860 | -6/Lower Caves | Discovered new exit (range 16) 13935 | -6/Lower Caves | Entered another Lower Caves area 14383 | -6/Lower Caves | Spotted B-75 Beast 14455 | -6/Lower Caves | Destroyed B-75 Beast 14459 | -6/Lower Caves | Lost 5 parts (1p2u2w) 14519 | -6/Lower Caves | Learned Factory terminal intel 14680 | -6/Lower Caves | Build established: Gunner 15160 | -6/Lower Caves | Discovered new exit (range 8) 15218 | -6/Lower Caves | Entered Zion 15367 | -6/Zion | System corruption cleaned by Quarantine Array 15417 | -6/Zion | Given A8's code to call for help 15417 | -6/Zion | Discovered new exit (range 16) 15530 | -6/Zion | Build established: Mutant 15542 | -6/Zion | Found Prototype Special Weapon 15542 | -6/Zion | Identified RU-N14's Throwing Claymores 16699 | -6/Zion | Given the Hacking Drone Bay 16965 | -6/Zion | Learned location of Quarantine (-3) 17476 | -6/Zion | Learned Factory trap positions 17879 | -6/Zion | Found RU-N14's Throwing Claymores 17897 | -6/Zion | Found RU-N14's Throwing Claymores 18015 | -6/Zion | Build established: Gunner 18432 | -6/Zion | Discovered new exit (range 3) 18493 | -6/Zion | Warned about damaging Zion machinery 19019 | -6/Zion | Found RU-N14's Throwing Claymores 19694 | -6/Zion | Caused signficant damage to Zion machinery 19694 | -6/Zion | Attacked by Zionites 19699 | -6/Zion | Saw the warning signs outside the Deep Caves entrance 20406 | -6/Zion | Entered Deep Caves 20927 | -6/Deep Caves | Attacked by Z-Imprinter 20942 | -6/Deep Caves | Destroyed Z-Imprinter 21009 | -6/Deep Caves | Found Prototype Protection 21009 | -6/Deep Caves | Identified Zio. Weapon Casing 21170 | -6/Deep Caves | Z-Facility disabled 21173 | -6/Deep Caves | System corruption reached 10% 21419 | -6/Deep Caves | Found Prototype Protection 21427 | -6/Deep Caves | Found Zio. Weapon Casing 21445 | -6/Deep Caves | Found Zio. Weapon Casing 21511 | -6/Deep Caves | Found Zio. Weapon Casing 21694 | -6/Deep Caves | Build established: Scavenger-Tank 21809 | -6/Deep Caves | Spotted AG-17245 21811 | -6/Deep Caves | Core integrity fell below 50% 21849 | -6/Deep Caves | Destroyed AG-17245 21878 | -6/Deep Caves | Lost 3 parts (1p2u) 22141 | -6/Deep Caves | Build established: Gunner 22198 | -6/Deep Caves | Found Zio. Weapon Casing 22202 | -6/Deep Caves | Found Zio. Weapon Casing 22479 | -6/Deep Caves | Triggered Deep Caves wall 22479 | -6/Deep Caves | Spotted AS-22286 22480 | -6/Deep Caves | Exposed GOLEM chamber 22494 | -6/Deep Caves | Core integrity fell below 20% 22507 | -6/Deep Caves | Identified Zio. Heavy Carapace 22513 | -6/Deep Caves | Destroyed by AG-67464 with Assembled Focal Cannon Last Messages --------------- 22497_ Unknown Device springs to life. 22497_ Penetrated by Slug. 22498_ AG-49478 GOLEM Unit beginning Prototype Leg integration. 22499_ as-95739 destroyed. 22501_ Unknown Device springs to life. 22501_ as-74243 destroyed. 22502_ AG-83133 GOLEM Unit beginning Prototype Leg integration. 22502_ Zio. Weapon Casing destroyed. 22502_ Penetrated by Slug. 22505_ Lyr. Medium Armor Plating destroyed. 22507_ Identified Zio. Heavy Carapace. 22508_ Penetrated by Slug. 22509_ Critical hit (Burn: +80). 22510_ Penetrated by Slug. 22513_ Destroyed Unknown Hover Unit. 22513_ as-72982 suffers critical hit (Blast). 22513_ Destroyed Asb. P-sword. 22513_ as-72982 knocked back. Map ----- +----------------------------------------------------+ | ???????????????????????????????????????????? | | ???????????????????????????????????????????? | | ???????????????????????????????????????????? | | ???????????????????????????????????????????? | | ??????????????????? ???????????????????????? | | ???????????????? ! ??????????????????????? | | ?????????????? ??????????????????????? | | ???????????? ??????????????????????? | | ???????????? ??????????????????????? | | ??????????? ?????????????????????? | | ??????????? ??###????????????# #? | | ?????????? #?# #???????????## # | | ?????????? h ### ##??????????# | | ?????????? # ???????????# | | ???????? a ##???????????# | | ??????? ! ###?? ??????# | | ??????? ]! #?? ??????# | | ?????? !] M #???? ???????# | | ?????? ! b ! ##??# #???????# | | ????? a ! #?## ##???????# | | ????? ### #??????## | | ??????" ## #?????## | | ??????### a ! ## ##???## | | ??????#GGG ! / ## ##??# | | ??????#GGG #?# ##?# | | ?????????" a @ #?# #?## | | ?????????" = ##? #?## | | ?????????" = a% M #?# ??# | | ????????# = #?# # #?## # | | ????????" / #?# # ### # | | ????????" l ** ### # # | | ????????" *l # # | | ????????""" / #### ## | | ????????" / #? #? | | ????????"" #### ##? | | ????????" #??# ###?? | | ????????"" ##?? ##???? | | ????????" %% #??# ####????? | | ????????" #### # ##??# ##???????? | | ?????????"" ##???# ##???####????????? | | ??????????? ?????## #????????????????? | | ????????????????????# #????????????????? | | | | | | | | | | | | | | | | | +----------------------------------------------------+ Best States ------------- Heat Dissipation 86 Energy Generation 35 Energy Capacity 700 Matter Stores 300 Matter Capacity 300 Sight Range 16 Terrain Scan Density 10 Jamming Range 12 Power Amplification 40 Armor Coverage 1200 Resistance: TH 25 Core Shielding 20 Weapon Shielding 100 Weapon Cycling 15 Evasion (%) 55 Targeting Accuracy 10 Core Analysis 6 Recoil Reduction 3 Salvage Targeting 1 Authchip Count 1 Item Schematics ----------------- Huge Storage Unit | -8/Materials | Scanalyzed Hvy. Phase Cannon | -8/Materials | Scanalyzed Launcher Loader | -6/Factory | Scanalyzed Hcp. Storage Unit | -6/Factory | Scanalyzed Imp. Dynamic Insulation System | -6/Zion | Archive Proton Cannon | -6/Zion | Archive Imp. Thermal Shield | -6/Zion | Archive Power Sword | -6/Zion | Archive KE Penetrator | -6/Zion | Archive Hvy. Flak Cannon | -6/Zion | Archive Imp. Kinecellerator | -6/Zion | Archive Fission Core | -6/Zion | Archive Phase Gun | -6/Zion | Archive Mak. Terrain Scanner | -6/Zion | Archive Nuclear Pulse Thruster | -6/Zion | Archive Imp. Plasma Cutter | -6/Zion | Archive Enh. Optical Array | -6/Zion | Archive Wave Gun | -6/Zion | Archive Tiamat Missile Launcher | -6/Zion | Archive Robot Schematics ------------------ T-07 Excavator | -6/Zion | Archive G-47 Trooper | -6/Zion | Archive L-41 Fighter | -6/Zion | Archive Fabricated ------------ Nothing Alien Tech Used ----------------- None Achievements -------------- None Challenges ------------ None Game ------ Seed GravmagAerolevWand Manual? 0 Play Time 01:28:57 Cumulative 747.1 hours Start 2024.03.30 @ 19:06:32 End 2024.03.30 @ 20:36:43 Sessions 1 Manual Loads 0 Difficulty Rogue Special Mode None Game No. 485 Rogue 478 Adventurer 0 Explorer 7 Win Type - Total 54 Types 20/5/19/2/0/1/5/1/1 Lore% 86 Gallery% 95 Achievement% 83 Wizard Run 0 Options --------- Layout 2 ASCII 0 Keyboard 0 Movement Numpad Keybinds 0 Fullscreen 1 Font 24/Tamsyn Map View 50x44 Zoom Use 0% Tactical HUD 1 Map Filters NONE Filters NONE Steam 1 RUN: 8f5c7967-7fe8-4d74-b141-1cfec95e5951